bitfinex/quotes_SOLUSD_20250528
["timestamp","ask_amount","ask_price","bid_price","bid_amount"]
[1748466192045,43.68546032,170.61,170.57,23.17083633]
[1748466192252,5.86200832,170.59,170.56,23.17083633]
[1748466193557,5.86200832,170.59,170.57,23.17083633]
[1748466194154,29.03250104,170.6,170.55,26.0]
[1748466194365,23.17083633,170.57,170.53,32.45083633]
[1748466194654,23.17083633,170.57,170.53,23.17083633]
[1748466195964,23.17083633,170.57,170.52,49.17083633]
[1748466196153,5.86338317,170.55,170.53,26.0]
[1748466197841,23.17083633,170.58,170.53,49.17083633]
[1748466198632,5.86269566,170.57,170.54,23.17083633]
[1748466201057,5.86235197,170.58,170.54,23.17083633]
[1748466203964,29.0331883,170.58,170.53,49.17083633]
[1748466207960,20.696983,170.58,170.53,40.83463103]
[1748466208257,5.86235197,170.58,170.53,40.83463103]
[1748466208566,20.696983,170.58,170.53,40.83463103]
[1748466213770,35.35286293,170.58,170.53,40.83463103]
[1748466214090,14.83463103,170.57,170.53,40.83463103]
[1748466217156,5.86303939,170.56,170.53,40.83463103]
[1748466218686,14.83463103,170.55,170.49,51.2314]
[1748466218864,14.83463103,170.55,170.51,14.83463103]
[1748466220683,5.86372698,170.54,170.51,14.83463103]
[1748466222798,5.86372698,170.54,170.5,14.83463103]
[1748466223195,20.69835801,170.54,170.5,14.83463103]
[1748466224171,14.83463103,170.52,170.48,1.6276]
[1748466224391,14.83463103,170.5,170.44,9.28]
[1748466224580,14.83463103,170.49,170.45,14.83463103]
[1748466224779,14.83463103,170.49,170.44,9.28]
[1748466224979,14.83463103,170.47,170.43,1.5555]
[1748466225279,14.83463103,170.47,170.43,16.39013103]
[1748466226300,5.86647893,170.46,170.43,16.39013103]
[1748466229378,14.66288334,170.5,170.43,16.39013103]
[1748466229379,14.83463103,170.5,170.45,14.83463103]
[1748466229584,20.70007239,170.5,170.45,14.83463103]
[1748466229901,5.86544136,170.5,170.46,14.83463103]
[1748466230684,20.70007239,170.5,170.46,14.83463103]
[1748466234791,20.70007239,170.5,170.45,14.83463103]
[1748466235000,20.70007239,170.5,170.46,14.83463103]
[1748466235695,14.83463103,170.48,170.43,1.5555]
[1748466235895,14.83463103,170.48,170.43,16.39013103]
[1748466236204,5.86647893,170.46,170.43,16.39013103]
[1748466237905,5.86647893,170.46,170.43,24.76438492]
[1748466240203,5.8661348,170.47,170.43,24.76438492]
[1748466245413,5.8661348,170.47,170.44,23.20888492]
[1748466249326,5.8655871,170.49,170.45,23.20888492]
[1748466250818,5.8655871,170.49,170.46,23.20888492]
[1748466251722,89.5,170.51,170.47,23.20888492]
[1748466251927,32.48888492,170.52,170.47,23.20888492]
[1748466252712,32.48888492,170.52,170.48,23.20888492]
[1748466252916,5.86489058,170.51,170.48,23.20888492]
[1748466256809,29.0737755,170.51,170.46,23.20888492]
[1748466257148,23.20888492,170.5,170.46,23.20888492]
[1748466257319,23.20888492,170.5,170.45,23.20888492]
[1748466257931,14.84928941,170.5,170.45,14.84928941]
[1748466258549,5.86544665,170.49,170.45,14.84928941]
[1748466259421,9.28,170.52,170.46,14.84928941]
[1748466259422,5.86475866,170.51,170.46,14.84928941]
[1748466259625,14.84928941,170.5,170.45,14.84928941]
[1748466259851,14.84928941,170.5,170.46,14.84928941]
[1748466260566,20.71455987,170.5,170.46,14.84928941]
[1748466261667,5.86527046,170.5,170.44,18.64964886]
[1748466261846,5.86527046,170.5,170.46,14.84928941]
[1748466262358,5.86527046,170.5,170.42,35.82]
[1748466262359,14.84928941,170.47,170.42,14.84928941]
[1748466263860,5.86647893,170.46,170.42,14.84928941]
[1748466264065,5.86647893,170.46,170.42,23.21014483]
[1748466268353,5.86647893,170.46,170.43,23.21014483]
[1748466268564,5.86624205,170.47,170.43,23.21014483]
[1748466269275,5.86624205,170.47,170.43,22.22008107]
[1748466269480,5.86624205,170.47,170.43,23.21014483]
[1748466270856,23.21014483,170.48,170.43,23.21014483]
[1748466271073,5.86578295,170.49,170.44,23.21014483]
[1748466271275,5.86578295,170.49,170.46,23.21014483]
[1748466271459,5.86578295,170.49,170.45,23.21014483]
[1748466271972,29.07592778,170.49,170.45,23.21014483]
[1748466272681,29.07592778,170.49,170.44,23.21014483]
[1748466273554,29.07592778,170.49,170.43,26.0]
[1748466273555,23.21014483,170.48,170.43,26.0]
[1748466273875,23.21014483,170.47,170.43,23.21014483]
[1748466274874,5.86647893,170.46,170.43,23.21014483]
[1748466279382,14.66361663,170.49,170.43,23.21014483]
[1748466279383,5.86544665,170.49,170.45,23.21014483]
[1748466279579,29.07490349,170.51,170.47,23.21014483]
[1748466279769,5.86475866,170.51,170.47,23.21014483]
[1748466279969,29.07490349,170.51,170.47,23.21014483]
[1748466281763,5.86475866,170.51,170.47,23.21014483]
[1748466285866,14.84619284,170.51,170.47,14.84619284]
[1748466287395,5.86510263,170.5,170.47,14.84619284]
[1748466288811,14.84619284,170.49,170.44,26.0]
[1748466289010,14.84619284,170.48,170.43,10.7611]
[1748466289185,14.84619284,170.48,170.44,14.84619284]
[1748466289695,5.8661348,170.47,170.43,24.10619284]
[1748466289880,5.8661348,170.47,170.43,32.46836989]
[1748466291484,5.8661348,170.47,170.43,23.20836989]
[1748466294297,23.20836989,170.45,170.39,10.8034]
[1748466294475,23.20836989,170.45,170.41,23.20836989]
[1748466294677,23.20836989,170.46,170.41,23.20836989]
[1748466295583,23.20836989,170.46,170.42,23.20836989]
[1748466297684,5.86682311,170.45,170.42,23.20836989]
[1748466298084,5.86544665,170.49,170.42,23.20836989]
[1748466298290,23.20836989,170.48,170.44,23.20836989]
[1748466298495,23.20836989,170.48,170.43,23.20836989]
[1748466299911,5.8661348,170.47,170.43,23.20836989]
[1748466300699,29.07450469,170.47,170.43,23.20836989]
[1748466305417,29.07450469,170.47,170.42,23.20836989]
[1748466305905,23.20836989,170.46,170.39,10.8034]
[1748466306119,23.20836989,170.46,170.42,23.20836989]
[1748466306694,5.86682311,170.45,170.41,23.20836989]
[1748466309610,29.075193,170.45,170.41,23.20836989]
[1748466309927,20.72432498,170.45,170.41,14.85750187]
[1748466310220,20.72432498,170.45,170.4,14.85750187]
[1748466312305,5.86682311,170.45,170.41,14.85750187]
[1748466312915,5.86682311,170.45,170.42,14.85750187]
[1748466314041,5.86647893,170.46,170.42,14.85750187]
[1748466315935,5.86338317,170.55,170.45,94.56785821]
[1748466316234,14.85750187,170.56,170.51,14.85750187]
[1748466316428,14.85750187,170.55,170.5,14.85750187]
[1748466317621,5.86372698,170.54,170.5,14.85750187]
[1748466317926,5.86372698,170.54,170.5,23.19013454]
[1748466319317,5.86372698,170.54,170.51,23.19013454]
[1748466320740,5.86337034,170.56,170.52,23.19013454]
[1748466321146,6.4945,170.7,170.59,25.14014886]
[1748466321454,6.4945,170.7,170.57,1.6307]
[1748466321455,23.19013454,170.64,170.57,1.6307]
[1748466321658,5.86132114,170.61,170.57,24.82083454]
[1748466321959,23.19013454,170.58,170.53,1.6015]
[1748466322130,23.19013454,170.56,170.51,18.64964886]
[1748466322324,23.19013454,170.56,170.52,23.19013454]
[1748466322644,56.31462399,170.61,170.52,23.19013454]
[1748466322645,23.19013454,170.57,170.52,23.19013454]
[1748466323734,29.05317393,170.56,170.51,41.8397834]
[1748466324135,23.19013454,170.55,170.5,32.6129]
[1748466324349,23.19013454,170.55,170.5,49.19013454]
[1748466325060,23.19013454,170.55,170.5,23.19013454]
[1748466325261,23.19013454,170.54,170.5,23.19013454]
[1748466325844,5.86407083,170.53,170.5,23.19013454]
[1748466327840,5.86372698,170.54,170.5,23.19013454]
[1748466328947,5.86372698,170.54,170.51,41.8397834]
[1748466329146,29.05248651,170.58,170.53,23.19013454]
[1748466329366,43.70836644,170.58,170.53,23.19013454]
[1748466330356,23.19013454,170.57,170.53,23.19013454]
[1748466332466,89.5,170.59,170.54,23.19013454]
[1748466332467,5.86303939,170.56,170.54,23.19013454]
[1748466332666,5.86303939,170.56,170.55,23.19013454]
[1748466333460,5.86235197,170.58,170.51,18.64964886]
[1748466333669,5.86235197,170.58,170.54,23.19013454]
[1748466342897,5.86235197,170.58,170.55,23.19013454]
[1748466345377,5.86207295,170.59,170.57,23.19013454]
[1748466345579,5.86207295,170.59,170.55,23.19013454]
[1748466347771,23.19013454,170.59,170.55,23.19013454]
[1748466348797,23.19013454,170.6,170.55,23.19013454]
[1748466349001,23.19013454,170.61,170.57,23.19013454]
[1748466350104,5.86166471,170.6,170.57,23.19013454]
[1748466354508,43.70379853,170.62,170.57,23.19013454]
[1748466356016,43.70379853,170.62,170.58,23.19013454]
[1748466356017,20.51366399,170.62,170.58,23.19013454]
[1748466357880,20.51366399,170.62,170.55,1.5629]
[1748466357881,5.86097761,170.62,170.55,30.616304]
[1748466358087,5.86097761,170.62,170.61,23.19013454]
[1748466358897,20.5103413,170.65,170.61,23.19013454]
[1748466359196,43.70047584,170.65,170.6,23.19013454]
[1748466360004,20.5103413,170.65,170.61,23.19013454]
[1748466360911,20.51221942,170.63,170.57,18.64964886]
[1748466361197,20.51221942,170.63,170.59,23.19013454]
[1748466362006,20.51221942,170.63,170.6,23.19013454]
[1748466364381,43.70235396,170.63,170.59,23.19013454]
[1748466364587,43.70235396,170.63,170.58,23.19013454]
[1748466365686,23.19013454,170.62,170.58,23.19013454]
[1748466368008,5.86132114,170.61,170.58,23.19013454]
[1748466370405,20.51462399,170.61,170.57,23.19013454]
[1748466370594,23.19013454,170.6,170.56,23.19013454]
[1748466370796,23.19013454,170.6,170.55,24.75303454]
[1748466371103,23.19013454,170.59,170.54,23.19013454]
[1748466371306,23.19013454,170.59,170.55,23.19013454]
[1748466371501,112.69013454,170.6,170.55,23.19013454]
[1748466372396,5.86200832,170.59,170.55,23.19013454]
[1748466376521,20.51702913,170.59,170.52,6.2156]
[1748466376838,43.70716367,170.59,170.55,23.19013454]
[1748466377524,43.70716367,170.59,170.57,23.19013454]
[1748466377525,5.86200832,170.59,170.57,23.19013454]
[1748466378599,5.86200832,170.59,170.56,23.19013454]
[1748466381331,5.86200832,170.59,170.58,23.19013454]
[1748466381838,5.86200832,170.59,170.57,23.19013454]
[1748466382798,37.84330582,170.62,170.57,23.19013454]
[1748466382799,14.65317128,170.62,170.57,23.19013454]
[1748466383003,37.84330582,170.62,170.57,23.19013454]
[1748466384807,43.70428343,170.62,170.57,23.19013454]
[1748466385927,23.19013454,170.58,170.52,15.4556]
[1748466386129,23.19013454,170.58,170.54,23.19013454]
[1748466386510,23.19013454,170.59,170.54,23.19013454]
[1748466386711,112.69013454,170.61,170.56,23.19013454]
[1748466386900,5.86166471,170.6,170.56,23.19013454]
[1748466387229,29.05179925,170.6,170.56,23.19013454]
[1748466388409,29.05179925,170.6,170.55,23.19013454]
[1748466392418,29.05179925,170.6,170.56,23.19013454]
[1748466392818,5.86166471,170.6,170.56,23.19013454]
[1748466395039,5.86166471,170.6,170.57,23.19013454]
[1748466395950,5.86166471,170.6,170.58,23.19013454]
[1748466396423,29.05042521,170.64,170.59,23.19013454]
[1748466399130,43.70115188,170.64,170.59,23.19013454]
[1748466406147,5.86097761,170.62,170.59,23.19013454]
[1748466407344,5.86097761,170.62,170.6,23.19013454]
[1748466408636,43.70115188,170.64,170.6,23.19013454]
[1748466412963,43.70115188,170.64,170.59,23.19013454]
[1748466413334,23.19013454,170.63,170.58,23.19013454]
[1748466413549,23.19013454,170.62,170.57,23.19013454]
[1748466416235,5.86132114,170.61,170.57,23.19013454]
[1748466419955,20.69252602,170.61,170.56,35.06545374]
[1748466420842,14.83120488,170.62,170.57,14.83120488]
[1748466421543,14.83120488,170.62,170.56,20.23424886]
[1748466421742,14.83120488,170.6,170.54,18.64964886]
[1748466421946,14.83120488,170.6,170.55,14.83120488]
[1748466422372,14.83120488,170.6,170.56,14.83120488]
[1748466423244,5.86200832,170.59,170.56,14.83120488]
[1748466429281,5.86200832,170.59,170.53,18.64964886]
[1748466429571,5.86200832,170.59,170.56,14.83120488]
[1748466430147,14.83120488,170.6,170.56,14.83120488]
[1748466430347,14.83120488,170.6,170.52,62.24174886]
[1748466430348,14.83120488,170.6,170.55,14.83120488]
[1748466431668,5.86200832,170.59,170.55,14.83120488]
[1748466434362,5.86200832,170.59,170.52,62.24174886]
[1748466434363,35.34823401,170.59,170.52,43.5921]
[1748466434569,14.83120488,170.58,170.54,14.83120488]
[1748466436558,5.86269566,170.57,170.54,14.83120488]
[1748466436786,5.86269566,170.57,170.53,14.83120488]
[1748466437357,20.69390054,170.57,170.53,14.83120488]
[1748466439359,5.86269566,170.57,170.53,14.83120488]
[1748466441091,14.65502081,170.59,170.53,14.83120488]
[1748466441389,14.83120488,170.58,170.53,14.83120488]
[1748466442283,95.36166471,170.6,170.55,14.83120488]
[1748466442493,95.36166471,170.6,170.57,14.83120488]
[1748466442889,95.36166471,170.6,170.53,18.64964886]
[1748466443064,95.36166471,170.6,170.57,14.83120488]
[1748466443879,110.19286959,170.6,170.56,14.83120488]
[1748466444795,110.19286959,170.6,170.53,18.64964886]
[1748466445095,110.19286959,170.6,170.56,14.83120488]
[1748466446195,95.36166471,170.6,170.56,14.83120488]
[1748466447099,5.86166471,170.6,170.56,14.83120488]
[1748466453003,4.85619451,170.6,170.56,14.83120488]
[1748466461397,4.85619451,170.6,170.57,14.83120488]
[1748466462197,4.85619451,170.6,170.56,14.83120488]
[1748466462479,4.85619451,170.6,170.57,14.83120488]
[1748466464211,19.68739939,170.6,170.56,14.83120488]
[1748466464508,4.85619451,170.6,170.56,14.83120488]
[1748466467013,14.6532574,170.62,170.58,14.83120488]
[1748466467014,5.86097761,170.62,170.58,14.83120488]
[1748466469214,5.86063412,170.63,170.58,14.83120488]
[1748466469412,20.691839,170.63,170.58,14.83120488]
[1748466470611,5.86063412,170.63,170.59,14.83120488]
[1748466472314,5.86063412,170.63,170.6,14.83120488]
[1748466479209,38.70188435,170.65,170.6,14.83120488]
[1748466479210,5.86029067,170.64,170.6,14.83120488]
[1748466480523,5.86029067,170.64,170.62,14.83120488]
[1748466482925,5.85994726,170.65,170.62,14.83120488]
[1748466484507,20.50741196,170.67,170.62,14.83120488]
[1748466484722,35.33861684,170.67,170.62,14.83120488]
[1748466487220,5.85994726,170.65,170.62,14.83120488]
[1748466489311,20.50741196,170.67,170.62,14.83120488]
[1748466489631,14.83120488,170.66,170.62,14.83120488]
[1748466490533,5.85994726,170.65,170.62,14.83120488]
[1748466493022,5.85994726,170.65,170.63,14.83120488]
[1748466494116,20.50741196,170.67,170.63,14.83120488]
[1748466496740,23.8459971,170.7,170.66,14.83120488]
[1748466496910,5.85857402,170.69,170.68,14.83120488]
[1748466499432,5.85754451,170.72,170.68,14.83120488]
[1748466499617,20.5014058,170.72,170.68,14.83120488]
[1748466499830,20.5014058,170.72,170.7,14.83120488]
[1748466500945,20.5014058,170.72,170.69,14.83120488]
[1748466501239,14.64386129,170.72,170.69,14.83120488]
[1748466502630,5.85720142,170.73,170.7,14.83120488]
[1748466504747,5.85720142,170.73,170.69,14.83120488]
[1748466507154,20.6884063,170.73,170.69,14.83120488]
[1748466507364,5.85720142,170.73,170.71,14.83120488]
[1748466509545,5.85685838,170.74,170.7,14.83120488]
[1748466511768,20.68806326,170.74,170.7,14.83120488]
[1748466513569,35.33020921,170.74,170.7,14.83120488]
[1748466518553,5.85685838,170.74,170.72,14.83120488]
[1748466518884,5.85685838,170.74,170.71,14.83120488]
[1748466519568,5.85685838,170.74,170.7,14.83120488]
[1748466520872,20.68806326,170.74,170.7,14.83120488]
[1748466521987,5.85685838,170.74,170.7,14.83120488]
[1748466522183,20.68806326,170.74,170.7,14.83120488]
[1748466522479,5.85685838,170.74,170.71,14.83120488]
[1748466527486,5.85685838,170.74,170.69,18.64964886]
[1748466527677,5.85685838,170.74,170.71,14.83120488]
[1748466528383,20.49792114,170.75,170.71,14.83120488]
[1748466528583,20.49792114,170.75,170.72,14.83120488]
[1748466529788,35.32912602,170.75,170.71,14.83120488]
[1748466531587,35.32912602,170.75,170.7,14.83120488]
[1748466532880,20.49792114,170.75,170.7,14.83120488]
[1748466533087,35.32912602,170.75,170.7,14.83120488]
[1748466535391,5.85651537,170.75,170.73,14.83120488]
[1748466535588,5.85651537,170.75,170.72,14.83120488]
[1748466538196,5.85651537,170.75,170.68,1.6118]
[1748466538197,14.83120488,170.73,170.68,1.6118]
[1748466538374,14.83120488,170.71,170.66,24.01120488]
[1748466538566,14.83120488,170.7,170.66,24.01120488]
[1748466539694,5.85857402,170.69,170.66,24.01120488]
[1748466540383,20.6897789,170.69,170.66,9.18]
[1748466540588,20.6897789,170.69,170.65,14.83120488]
[1748466543399,20.6897789,170.69,170.64,1.5088]
[1748466543695,20.6897789,170.69,170.65,14.83120488]
[1748466544178,20.63073769,170.69,170.65,14.83120488]
[1748466545073,14.83120488,170.67,170.61,35.18]
[1748466545273,14.83120488,170.66,170.62,14.83120488]
[1748466545476,20.44596786,170.69,170.61,24.01120488]
[1748466545694,14.83120488,170.66,170.61,24.01120488]
[1748466546896,5.85994726,170.65,170.61,24.01120488]
[1748466547403,20.69115214,170.65,170.61,24.01120488]
[1748466547770,20.69115214,170.65,170.61,14.83120488]
[1748466548004,23.16145041,170.65,170.61,23.16145041]
[1748466549196,5.86029067,170.64,170.61,23.16145041]
[1748466555418,5.86029067,170.64,170.6,24.68165041]
[1748466557549,5.86029067,170.64,170.6,1.5202]
[1748466557710,5.86029067,170.64,170.6,24.68165041]
[1748466558809,23.16145041,170.66,170.61,23.16145041]
[1748466559429,23.16145041,170.65,170.61,23.16145041]
[1748466560949,5.86029067,170.64,170.58,18.64964886]
[1748466561239,29.02174108,170.64,170.6,23.16145041]
[1748466567031,14.64844056,170.67,170.6,23.16145041]
[1748466567237,23.16145041,170.64,170.6,23.16145041]
[1748466567924,14.82456147,170.64,170.6,14.82456147]
[1748466568124,5.86063412,170.63,170.6,14.82456147]
[1748466569339,14.64844056,170.67,170.6,14.82456147]
[1748466569544,14.82456147,170.65,170.61,14.82456147]
[1748466571823,5.86029067,170.64,170.61,14.82456147]
[1748466573054,20.68485214,170.64,170.6,14.82456147]
[1748466574056,20.68485214,170.64,170.58,18.64964886]
[1748466574057,14.82456147,170.63,170.58,18.64964886]
[1748466574351,14.82456147,170.63,170.59,14.82456147]
[1748466575324,5.86097761,170.62,170.59,14.82456147]
[1748466576656,20.68553908,170.62,170.58,33.47421033]
[1748466577449,5.86097761,170.62,170.59,14.82456147]
[1748466577653,5.86097761,170.62,170.6,14.82456147]
[1748466578663,5.86063412,170.63,170.6,14.82456147]
[1748466581559,5.86037515,170.64,170.6,14.82456147]
[1748466582052,20.68493662,170.64,170.6,14.82456147]
[1748466582376,14.82456147,170.63,170.59,14.82456147]
[1748466583172,5.86037515,170.64,170.59,14.82456147]
[1748466583173,20.50874552,170.66,170.59,14.82456147]
[1748466583362,14.82456147,170.63,170.59,14.82456147]
[1748466584477,20.68543849,170.63,170.59,14.82456147]
[1748466589275,14.82456147,170.64,170.59,14.82456147]
[1748466590769,5.86063412,170.63,170.59,14.82456147]
[1748466594255,5.86063412,170.63,170.58,18.64964886]
[1748466594455,5.86063412,170.63,170.59,14.82456147]
[1748466598165,5.86063412,170.63,170.58,33.47421033]
[1748466601486,5.86063412,170.63,170.59,14.82456147]
[1748466601686,5.85960389,170.66,170.6,14.82456147]
[1748466601883,14.82456147,170.65,170.6,33.47421033]
[1748466603084,14.82456147,170.65,170.61,14.82456147]
[1748466604670,5.86029067,170.64,170.6,33.47421033]
[1748466606700,14.82456147,170.61,170.56,9.18]
[1748466606878,14.82456147,170.59,170.56,9.18]
[1748466607185,14.82456147,170.6,170.56,9.18]
[1748466607391,14.82456147,170.6,170.56,24.00456147]
[1748466608269,5.86200832,170.59,170.56,24.00456147]
[1748466609392,5.86166471,170.6,170.56,14.82456147]
[1748466612102,5.86166471,170.6,170.57,14.82456147]
[1748466612779,5.86166471,170.6,170.58,14.82456147]
[1748466613975,5.86132114,170.61,170.58,14.82456147]
[1748466615367,5.86132114,170.61,170.57,14.82456147]
[1748466617298,5.86063412,170.63,170.58,14.82456147]
[1748466617517,14.82456147,170.62,170.58,14.82456147]
[1748466619688,5.86132114,170.61,170.58,14.82456147]
[1748466620502,5.86063412,170.63,170.59,14.82456147]
[1748466620703,14.82456147,170.62,170.58,14.82456147]
[1748466621902,20.68574959,170.62,170.58,14.82456147]
[1748466622305,5.86029067,170.64,170.59,14.82456147]
[1748466622613,14.82456147,170.63,170.59,14.82456147]
[1748466624500,20.68534781,170.63,170.59,14.82456147]
[1748466624995,5.86078634,170.63,170.59,14.82456147]
[1748466629302,14.82456147,170.63,170.59,14.82456147]
[1748466630117,20.68485214,170.64,170.6,14.82456147]
[1748466630821,14.82456147,170.63,170.59,14.82456147]
[1748466631298,5.86071711,170.63,170.59,14.82456147]
[1748466632797,5.86071711,170.63,170.6,14.82456147]
[1748466637420,5.85926056,170.67,170.62,14.82456147]
[1748466637625,5.85926056,170.67,170.65,14.82456147]
[1748466637919,14.82456147,170.66,170.61,26.0]
[1748466638218,14.82456147,170.63,170.61,26.0]
[1748466638514,14.82456147,170.64,170.61,26.0]
[1748466639922,20.68519559,170.63,170.58,40.82456147]
[1748466640927,14.82456147,170.62,170.58,26.0]
[1748466642000,5.86132114,170.61,170.58,26.0]
[1748466647296,5.86132114,170.61,170.57,14.82456147]
[1748466648102,5.86132114,170.61,170.58,40.82456147]
[1748466649509,5.86132114,170.61,170.57,14.82456147]
[1748466652532,5.86132114,170.61,170.58,40.82456147]
[1748466653318,5.86097761,170.62,170.58,40.82456147]
[1748466656125,5.86097761,170.62,170.59,14.82456147]
[1748466658237,5.86063412,170.63,170.59,14.82456147]
[1748466658544,20.68519559,170.63,170.59,14.82456147]
[1748466660545,5.86063412,170.63,170.59,14.82456147]
[1748466662318,95.36042537,170.64,170.6,14.82456147]
[1748466663147,5.86042537,170.64,170.6,14.82456147]
[1748466666442,5.86042537,170.64,170.61,14.82456147]
[1748466667822,20.68498684,170.64,170.58,18.64964886]
[1748466668121,20.68498684,170.64,170.59,14.82456147]
[1748466669456,14.82456147,170.63,170.59,14.82456147]
[1748466670049,14.82456147,170.64,170.59,14.82456147]
[1748466671245,20.50919505,170.66,170.6,14.82456147]
[1748466671450,14.82456147,170.65,170.6,14.82456147]
[1748466671744,5.86029067,170.64,170.6,14.82456147]
[1748466677473,20.68485214,170.64,170.6,14.82456147]
[1748466678367,14.82456147,170.63,170.58,18.64964886]
[1748466678552,14.82456147,170.63,170.59,14.82456147]
[1748466680150,14.82456147,170.62,170.57,14.82456147]
[1748466680457,5.86132114,170.61,170.57,14.82456147]
[1748466682571,5.86132114,170.61,170.58,14.82456147]
[1748466685562,5.86132114,170.61,170.57,14.82456147]
[1748466685952,20.68588261,170.61,170.57,14.82456147]
[1748466686473,14.82456147,170.6,170.55,44.14371033]
[1748466686657,14.82456147,170.58,170.52,18.64964886]
[1748466686852,20.68758936,170.57,170.52,33.47421033]
[1748466688281,5.86302789,170.57,170.53,14.82456147]
[1748466696459,20.68758936,170.57,170.52,14.82456147]
[1748466698488,20.68758936,170.57,170.53,14.82456147]
[1748466700569,5.86302789,170.57,170.52,18.64964886]
[1748466700765,5.86302789,170.57,170.55,14.82456147]
[1748466701588,5.86302789,170.57,170.52,18.64964886]
[1748466701795,5.86302789,170.57,170.54,14.82456147]
[1748466704695,5.86235197,170.58,170.54,14.82456147]
[1748466707885,14.82456147,170.58,170.54,14.82456147]
[1748466708901,5.86269566,170.57,170.54,14.82456147]
[1748466709498,5.86269566,170.57,170.53,14.82456147]
[1748466711497,5.86269566,170.57,170.54,14.82456147]
[1748466717313,5.86269566,170.57,170.53,14.82456147]
[1748466719811,20.68725713,170.57,170.53,14.82456147]
[1748466723607,20.68725713,170.57,170.54,14.82456147]
[1748466723608,5.86269566,170.57,170.54,14.82456147]
[1748466724230,14.82456147,170.55,170.51,16.34106147]
[1748466724786,14.82456147,170.54,170.5,14.82456147]
[1748466726109,5.86407083,170.53,170.5,14.82456147]
[1748466729927,14.82456147,170.52,170.48,26.0]
[1748466730103,14.82456147,170.52,170.47,16.38336147]
[1748466730442,14.82456147,170.52,170.48,14.82456147]
[1748466731512,5.86475866,170.51,170.48,14.82456147]
[1748466732296,5.86344771,170.55,170.5,14.82456147]
[1748466732525,5.86344771,170.55,170.53,14.82456147]
[1748466733028,5.86344771,170.55,170.52,14.82456147]
[1748466734806,5.86344771,170.55,170.53,14.82456147]
[1748466736038,89.5,170.56,170.54,14.82456147]
[1748466736202,5.86299609,170.57,170.54,14.82456147]
[1748466741631,5.86299609,170.57,170.53,14.82456147]
[1748466742621,5.86299609,170.57,170.54,14.82456147]
[1748466742835,5.86299609,170.57,170.53,14.82456147]
[1748466743739,20.68755756,170.57,170.53,14.82456147]
[1748466744847,5.86299609,170.57,170.53,14.82456147]
[1748466749036,14.82456147,170.56,170.51,14.82456147]
[1748466750428,14.82456147,170.55,170.51,14.82456147]
[1748466750928,130.15490441,170.6,170.52,14.82456147]
[1748466751137,95.36200832,170.59,170.55,14.82456147]
[1748466751520,95.36200832,170.59,170.52,1.5091]
[1748466751521,95.36200832,170.59,170.54,14.82456147]
[1748466751724,110.18656979,170.59,170.54,14.82456147]
[1748466753117,95.36200832,170.59,170.54,14.82456147]
[1748466753721,95.36200832,170.59,170.55,14.82456147]
[1748466754323,95.36200832,170.59,170.56,14.82456147]
[1748466754548,5.86200832,170.59,170.55,14.82456147]
[1748466759452,14.82456147,170.59,170.55,14.82456147]
[1748466761060,5.86235197,170.58,170.55,14.82456147]
[1748466763767,20.68622618,170.6,170.55,14.82456147]
[1748466764263,20.68622618,170.6,170.56,14.82456147]
[1748466770457,5.86144914,170.61,170.58,14.82456147]
[1748466770647,5.85926056,170.67,170.6,14.82456147]
[1748466770833,5.85926056,170.67,170.59,18.64964886]
[1748466771032,14.82456147,170.66,170.62,14.82456147]
[1748466771966,5.85994726,170.65,170.62,14.82456147]
[1748466772943,5.85994726,170.65,170.61,14.82456147]
[1748466773942,5.85994726,170.65,170.59,18.64964886]
[1748466774246,14.82456147,170.63,170.59,14.82456147]
[1748466774444,14.82456147,170.63,170.58,16.33946147]
[1748466775037,20.50981541,170.65,170.59,14.82456147]
[1748466775238,14.82456147,170.63,170.59,14.82456147]
[1748466776466,14.82456147,170.63,170.58,1.5149]
[1748466776467,5.86097761,170.62,170.6,14.82456147]
[1748466777895,5.86063412,170.63,170.6,14.82456147]
[1748466778573,5.85926056,170.67,170.61,14.82456147]
[1748466778764,95.35926056,170.67,170.59,24.51161054]
[1748466778958,95.35926056,170.67,170.65,14.82456147]
[1748466779161,5.85926056,170.67,170.64,14.82456147]
[1748466779972,5.85891727,170.68,170.64,23.15138454]
[1748466780147,5.85891727,170.68,170.65,23.15138454]
[1748466780347,29.01030181,170.68,170.64,23.15138454]
[1748466783079,5.85891727,170.68,170.65,23.15138454]
[1748466783256,5.85891727,170.68,170.66,23.15138454]
[1748466783462,14.97870093,170.69,170.67,23.15138454]
[1748466783662,20.50320075,170.71,170.67,23.15138454]
[1748466783872,43.65458529,170.71,170.67,23.15138454]
[1748466784971,20.50320075,170.71,170.67,23.15138454]
[1748466785493,20.50320075,170.71,170.64,1.5149]
[1748466785494,43.65458529,170.71,170.66,23.15138454]
[1748466787472,43.65458529,170.71,170.67,23.15138454]
[1748466787993,29.00927218,170.71,170.67,23.15138454]
[1748466789289,29.00927218,170.71,170.66,23.15138454]
[1748466789480,29.00927218,170.71,170.67,23.15138454]
[1748466790367,5.85788764,170.71,170.66,23.15138454]
[1748466790582,5.85788764,170.71,170.64,1.5149]
[1748466790583,5.85788764,170.71,170.67,23.15138454]
[1748466790881,5.85788764,170.71,170.64,1.5149]